[Event "*** Titled Tuesday Blitz"]
[Site "Chess.com"]
[Date "2020.10.20"]
[Round "9"]
[White "zurzan"]
[Black "Margarita2907"]
[Result "0-1"]
[WhiteElo "2011"]
[BlackElo "2174"]
[TimeControl "180+1"]
[EndTime "11:49:06 PDT"]
[Termination "Margarita2907 won on time"]

1. f4 {[%clk 0:03:00.9]} 1... d5 {[%clk 0:02:56.2]} 2. Nf3 {[%clk 0:03:00.8]}
2... Nf6 {[%clk 0:02:52.6]} 3. g3 {[%clk 0:03:00.9]} 3... g6 {[%clk 0:02:48.6]}
4. Bg2 {[%clk 0:03:01.8]} 4... Bg7 {[%clk 0:02:47.8]} 5. O-O {[%clk 0:03:02.7]}
5... O-O {[%clk 0:02:47.8]} 6. d3 {[%clk 0:03:03.6]} 6... c6 {[%clk 0:02:46.6]}
7. c3 {[%clk 0:03:04.5]} 7... Nbd7 {[%clk 0:02:45.7]} 8. Qc2 {[%clk 0:03:05.4]}
8... Re8 {[%clk 0:02:44.9]} 9. e4 {[%clk 0:03:05.2]} 9... dxe4 {[%clk
0:02:43.9]} 10. dxe4 {[%clk 0:03:05.3]} 10... Nc5 {[%clk 0:02:39.2]} 11. Rd1
{[%clk 0:02:56.4]} 11... Qc7 {[%clk 0:02:35]} 12. e5 {[%clk 0:02:54.7]} 12...
Bf5 {[%clk 0:02:32.7]} 13. Qe2 {[%clk 0:02:42.7]} 13... Nd5 {[%clk 0:02:27]} 14.
Nd4 {[%clk 0:02:36]} 14... Bd7 {[%clk 0:02:13]} 15. b4 {[%clk 0:02:34.5]} 15...
Na4 {[%clk 0:02:06.2]} 16. Bd2 {[%clk 0:02:29.8]} 16... Rad8 {[%clk 0:01:59.3]}
17. Rc1 {[%clk 0:02:22.4]} 17... Qc8 {[%clk 0:01:52]} 18. c4 {[%clk 0:02:19.4]}
18... Bg4 {[%clk 0:01:47.3]} 19. Qe4 {[%clk 0:02:03.8]} 19... Nc7 {[%clk
0:01:42.3]} 20. Be3 {[%clk 0:01:33]} 20... Nb6 {[%clk 0:01:32.9]} 21. Nd2 {[%clk
0:01:25.4]} 21... Ne6 {[%clk 0:01:23]} 22. Nxe6 {[%clk 0:01:20.6]} 22... Bxe6
{[%clk 0:01:22.5]} 23. a4 {[%clk 0:01:16]} 23... Bf5 {[%clk 0:01:13.3]} 24. Qf3
{[%clk 0:01:13.9]} 24... f6 {[%clk 0:01:01.5]} 25. a5 {[%clk 0:01:09.5]} 25...
Nd7 {[%clk 0:00:56.7]} 26. g4 {[%clk 0:00:48.2]} 26... fxe5 {[%clk 0:00:46.1]}
27. gxf5 {[%clk 0:00:47.6]} 27... exf4 {[%clk 0:00:44.6]} 28. Bxf4 {[%clk
0:00:46.5]} 28... Bxa1 {[%clk 0:00:42.1]} 29. Rxa1 {[%clk 0:00:45.7]} 29... Rf8
{[%clk 0:00:41.2]} 30. Bh6 {[%clk 0:00:38]} 30... Rxf5 {[%clk 0:00:39.3]} 31.
Qc3 {[%clk 0:00:37]} 31... Nf6 {[%clk 0:00:36.7]} 32. Bh3 {[%clk 0:00:31.6]}
32... Rd6 {[%clk 0:00:17.8]} 33. Ne4 {[%clk 0:00:24.2]} 33... Re6 {[%clk
0:00:11.2]} 34. Bxf5 {[%clk 0:00:23.4]} 34... gxf5 {[%clk 0:00:08.9]} 35. Qg3+
{[%clk 0:00:22.9]} 35... Kf7 {[%clk 0:00:07.3]} 36. Qg7+ {[%clk 0:00:22.6]}
36... Ke8 {[%clk 0:00:07.9]} 37. Qf8+ {[%clk 0:00:18.4]} 37... Kd7 {[%clk
0:00:07.6]} 38. Rd1+ {[%clk 0:00:19]} 38... Kc7 {[%clk 0:00:07.8]} 39. Qxc8+
{[%clk 0:00:15.5]} 39... Kxc8 {[%clk 0:00:08.7]} 40. Nxf6 {[%clk 0:00:14.8]}
40... Rxf6 {[%clk 0:00:09]} 41. Bf4 {[%clk 0:00:14.9]} 41... Rg6+ {[%clk
0:00:08.5]} 42. Kf2 {[%clk 0:00:14.5]} 42... Re6 {[%clk 0:00:09.1]} 43. Rd2
{[%clk 0:00:13.8]} 43... Re4 {[%clk 0:00:08.5]} 44. Kf3 {[%clk 0:00:08]} 44...
Rxc4 {[%clk 0:00:08.8]} 45. Rb2 {[%clk 0:00:08.8]} 45... Rc3+ {[%clk 0:00:08.3]}
46. Kf2 {[%clk 0:00:07.9]} 46... Rc4 {[%clk 0:00:08.5]} 47. Bg5 {[%clk
0:00:07.7]} 47... Re4 {[%clk 0:00:07.5]} 48. Re2 {[%clk 0:00:06.8]} 48... Rxb4
{[%clk 0:00:06.2]} 49. Rxe7 {[%clk 0:00:06.2]} 49... Rb2+ {[%clk 0:00:06.5]} 50.
Kg3 {[%clk 0:00:05.8]} 50... Rb5 {[%clk 0:00:06.6]} 51. a6 {[%clk 0:00:04.8]}
51... bxa6 {[%clk 0:00:05.1]} 52. Rxa7 {[%clk 0:00:04.9]} 52... a5 {[%clk
0:00:05.3]} 53. Rxh7 {[%clk 0:00:04.1]} 53... Rb3+ {[%clk 0:00:04.6]} 54. Kf4
{[%clk 0:00:03.7]} 54... a4 {[%clk 0:00:05.1]} 55. Kxf5 {[%clk 0:00:03.9]} 55...
a3 {[%clk 0:00:05.4]} 56. Bf6 {[%clk 0:00:04.1]} 56... a2 {[%clk 0:00:03.5]} 57.
Ke6 {[%clk 0:00:04.1]} 57... Re3+ {[%clk 0:00:03]} 58. Kd6 {[%clk 0:00:03.5]}
58... Rf3 {[%clk 0:00:02.3]} 59. Be5 {[%clk 0:00:03.2]} 59... Kb8 {[%clk
0:00:02.6]} 60. Kxc6+ {[%clk 0:00:03.2]} 60... Ka8 {[%clk 0:00:03.2]} 61. h4
{[%clk 0:00:02.1]} 61... Re3 {[%clk 0:00:03.1]} 62. Bb2 {[%clk 0:00:01.4]} 62...
Re1 {[%clk 0:00:03.5]} 0-1

[Event "*** Titled Tuesday Blitz"]
[Site "Chess.com"]
[Date "2020.10.20"]
[Round "9"]
[White "ThePatrick27"]
[Black "aloe_normansen"]
[Result "1-0"]
[WhiteElo "2565"]
[BlackElo "2364"]
[TimeControl "180+1"]
[EndTime "11:49:14 PDT"]
[Termination "ThePatrick27 won by resignation"]

1. d4 {[%clk 0:03:00.9]} 1... Nf6 {[%clk 0:02:59.5]} 2. c4 {[%clk 0:03:01]} 2...
g6 {[%clk 0:02:59.7]} 3. Nc3 {[%clk 0:02:59]} 3... Bg7 {[%clk 0:02:59.9]} 4. Nf3
{[%clk 0:02:58.7]} 4... O-O {[%clk 0:02:59.7]} 5. e4 {[%clk 0:02:55.8]} 5... d6
{[%clk 0:02:59.5]} 6. Be2 {[%clk 0:02:56]} 6... e5 {[%clk 0:02:59.4]} 7. O-O
{[%clk 0:02:55.1]} 7... Nc6 {[%clk 0:02:59.4]} 8. d5 {[%clk 0:02:50.4]} 8... Ne7
{[%clk 0:02:59.4]} 9. Ne1 {[%clk 0:02:49.9]} 9... Ne8 {[%clk 0:02:59]} 10. f3
{[%clk 0:02:50.1]} 10... f5 {[%clk 0:02:58.4]} 11. g4 {[%clk 0:02:50.3]} 11...
h6 {[%clk 0:02:34.4]} 12. Be3 {[%clk 0:02:48.5]} 12... fxg4 {[%clk 0:02:18.1]}
13. fxg4 {[%clk 0:02:47.2]} 13... g5 {[%clk 0:02:16.9]} 14. Nd3 {[%clk 0:02:38]}
14... Ng6 {[%clk 0:02:13.2]} 15. Rxf8+ {[%clk 0:02:28.2]} 15... Bxf8 {[%clk
0:02:12.4]} 16. Nf2 {[%clk 0:02:10.3]} 16... Nf4 {[%clk 0:02:10.7]} 17. b4
{[%clk 0:02:08.6]} 17... Qf6 {[%clk 0:02:03.6]} 18. c5 {[%clk 0:02:03.2]} 18...
Bg7 {[%clk 0:01:49.5]} 19. Rc1 {[%clk 0:01:55.4]} 19... Bd7 {[%clk 0:01:46.3]}
20. Bb5 {[%clk 0:01:50]} 20... Bxb5 {[%clk 0:01:43.8]} 21. Nxb5 {[%clk
0:01:50.9]} 21... a6 {[%clk 0:01:42.7]} 22. Nc3 {[%clk 0:01:49.8]} 22... Qg6
{[%clk 0:01:34.4]} 23. Ne2 {[%clk 0:01:31.9]} 23... Nf6 {[%clk 0:01:31.4]} 24.
Ng3 {[%clk 0:01:30.9]} 24... h5 {[%clk 0:01:24.8]} 25. gxh5 {[%clk 0:01:12.1]}
25... N6xh5 {[%clk 0:01:25.7]} 26. Nxh5 {[%clk 0:01:11.7]} 26... Nxh5 {[%clk
0:01:24.5]} 27. Qg4 {[%clk 0:01:09.5]} 27... Nf4 {[%clk 0:01:20.9]} 28. cxd6
{[%clk 0:01:07.4]} 28... cxd6 {[%clk 0:01:19.9]} 29. Rc8+ {[%clk 0:00:55.4]}
29... Rxc8 {[%clk 0:01:19.6]} 30. Qxc8+ {[%clk 0:00:55.7]} 30... Kh7 {[%clk
0:01:15.8]} 31. Qxb7 {[%clk 0:00:50.8]} 31... Qh5 {[%clk 0:01:12.6]} 32. Bxf4
{[%clk 0:00:44.7]} 32... exf4 {[%clk 0:01:08.8]} 33. Qd7 {[%clk 0:00:39.7]}
33... Qe2 {[%clk 0:00:56.5]} 34. Qh3+ {[%clk 0:00:37]} 34... Kg8 {[%clk
0:00:54.8]} 35. Qd3 {[%clk 0:00:29.2]} 35... Qe1+ {[%clk 0:00:51.7]} 36. Kg2
{[%clk 0:00:28.9]} 36... Qxb4 {[%clk 0:00:47.4]} 37. Qxa6 {[%clk 0:00:28.4]}
37... Qd2 {[%clk 0:00:45.4]} 38. Qc8+ {[%clk 0:00:27.2]} 38... Kh7 {[%clk
0:00:44.8]} 39. Qf5+ {[%clk 0:00:27.3]} 39... Kg8 {[%clk 0:00:39.6]} 40. a4
{[%clk 0:00:23.5]} 40... Kh8 {[%clk 0:00:22.9]} 41. a5 {[%clk 0:00:20.4]} 41...
Qxa5 {[%clk 0:00:20.5]} 42. Qxg5 {[%clk 0:00:19.2]} 42... Qd2 {[%clk 0:00:20.8]}
43. Qh4+ {[%clk 0:00:18.1]} 43... Kg8 {[%clk 0:00:20.7]} 44. Qd8+ {[%clk
0:00:18.1]} 44... Kh7 {[%clk 0:00:21]} 45. Qxd6 {[%clk 0:00:16.9]} 45... Bd4
{[%clk 0:00:21.2]} 46. Qe7+ {[%clk 0:00:17.1]} 46... Kg6 {[%clk 0:00:21]} 47.
Qe6+ {[%clk 0:00:16.1]} 47... Kg7 {[%clk 0:00:20.9]} 48. Qe7+ {[%clk 0:00:15.7]}
48... Kg6 {[%clk 0:00:21]} 49. Qh4 {[%clk 0:00:15.9]} 49... Qe3 {[%clk
0:00:18.4]} 50. Qg4+ {[%clk 0:00:15.9]} 50... Kf6 {[%clk 0:00:17.7]} 51. Qf3
{[%clk 0:00:15.7]} 51... Qd2 {[%clk 0:00:16.4]} 52. h4 {[%clk 0:00:14.7]} 52...
Be3 {[%clk 0:00:16]} 53. h5 {[%clk 0:00:13.7]} 53... Kg5 {[%clk 0:00:13.9]} 54.
Qg4+ {[%clk 0:00:12.4]} 54... Kf6 {[%clk 0:00:14.2]} 55. Qf3 {[%clk 0:00:12.1]}
55... Kg5 {[%clk 0:00:13.9]} 56. Kf1 {[%clk 0:00:11.8]} 56... Qc1+ {[%clk
0:00:13.5]} 57. Nd1 {[%clk 0:00:11.7]} 57... Qd2 {[%clk 0:00:10]} 58. Qg2+
{[%clk 0:00:11.5]} 58... Qxg2+ {[%clk 0:00:09.4]} 59. Kxg2 {[%clk 0:00:12.4]}
59... Bc5 {[%clk 0:00:09.3]} 60. Kf3 {[%clk 0:00:11.4]} 60... Bd6 {[%clk
0:00:09.4]} 61. Nf2 {[%clk 0:00:10.4]} 61... Kxh5 {[%clk 0:00:09.2]} 62. Nh3
{[%clk 0:00:11]} 62... Kg6 {[%clk 0:00:08]} 63. Nxf4+ {[%clk 0:00:11.6]} 63...
Kf6 {[%clk 0:00:08.7]} 64. Nd3 {[%clk 0:00:12.2]} 64... Bc7 {[%clk 0:00:07.8]}
65. Ke3 {[%clk 0:00:12.5]} 65... Bb6+ {[%clk 0:00:07.8]} 66. Kf4 {[%clk
0:00:12.8]} 66... Bc7+ {[%clk 0:00:08.1]} 67. e5+ {[%clk 0:00:13.2]} 67... Ke7
{[%clk 0:00:06.6]} 68. Ke4 {[%clk 0:00:13]} 68... Bb6 {[%clk 0:00:06.4]} 69. d6+
{[%clk 0:00:12.5]} 69... Kd7 {[%clk 0:00:06.9]} 70. Kd5 {[%clk 0:00:12.4]} 1-0

[Event "*** Titled Tuesday Blitz"]
[Site "Chess.com"]
[Date "2020.10.20"]
[Round "9"]
[White "IngOscarArdila"]
[Black "konradrutkowski"]
[Result "0-1"]
[WhiteElo "2194"]
[BlackElo "2416"]
[TimeControl "180+1"]
[EndTime "11:49:26 PDT"]
[Termination "konradrutkowski won on time"]

1. d4 {[%clk 0:03:00.9]} 1... Nf6 {[%clk 0:02:58.9]} 2. c4 {[%clk 0:03:00.8]}
2... g6 {[%clk 0:02:58.3]} 3. Nc3 {[%clk 0:03:00.3]} 3... Bg7 {[%clk 0:02:57]}
4. e4 {[%clk 0:03:00.5]} 4... d6 {[%clk 0:02:56]} 5. Nf3 {[%clk 0:03:00.2]} 5...
O-O {[%clk 0:02:53.8]} 6. Be2 {[%clk 0:03:00.2]} 6... e5 {[%clk 0:02:53.6]} 7.
d5 {[%clk 0:02:58.8]} 7... a5 {[%clk 0:02:52.3]} 8. O-O {[%clk 0:02:58.7]} 8...
Na6 {[%clk 0:02:49]} 9. Bg5 {[%clk 0:02:57.1]} 9... h6 {[%clk 0:02:48.9]} 10.
Bxf6 {[%clk 0:02:56.9]} 10... Bxf6 {[%clk 0:02:47.7]} 11. a3 {[%clk 0:02:57]}
11... Bd7 {[%clk 0:02:43.3]} 12. Qc2 {[%clk 0:02:54.8]} 12... Qe8 {[%clk
0:02:34.5]} 13. b3 {[%clk 0:02:41.6]} 13... Bg7 {[%clk 0:02:33.6]} 14. Rab1
{[%clk 0:02:38]} 14... Nc5 {[%clk 0:02:31]} 15. b4 {[%clk 0:02:37.1]} 15... axb4
{[%clk 0:02:31]} 16. axb4 {[%clk 0:02:37.3]} 16... Na4 {[%clk 0:02:31.4]} 17.
Ra1 {[%clk 0:02:32.4]} 17... Nxc3 {[%clk 0:02:28.7]} 18. Qxc3 {[%clk 0:02:32.6]}
18... Qe7 {[%clk 0:02:26.8]} 19. c5 {[%clk 0:02:32.1]} 19... Kh8 {[%clk
0:02:17.7]} 20. c6 {[%clk 0:02:25.5]} 20... bxc6 {[%clk 0:02:17.3]} 21. dxc6
{[%clk 0:02:25.8]} 21... Be6 {[%clk 0:02:17.5]} 22. Bc4 {[%clk 0:02:25]} 22...
Bg4 {[%clk 0:02:16.2]} 23. h3 {[%clk 0:02:16.6]} 23... Be6 {[%clk 0:02:06]} 24.
b5 {[%clk 0:02:13.8]} 24... f5 {[%clk 0:02:02.5]} 25. Nd2 {[%clk 0:02:10.4]}
25... fxe4 {[%clk 0:01:59.9]} 26. Bxe6 {[%clk 0:02:10.1]} 26... Qxe6 {[%clk
0:01:59.8]} 27. Nxe4 {[%clk 0:02:10.1]} 27... d5 {[%clk 0:01:57.3]} 28. Nc5
{[%clk 0:02:10]} 28... Qd6 {[%clk 0:01:54.2]} 29. Nb7 {[%clk 0:02:05.9]} 29...
Qe7 {[%clk 0:01:49.9]} 30. Rxa8 {[%clk 0:02:01.9]} 30... Rxa8 {[%clk 0:01:49.4]}
31. Qd3 {[%clk 0:02:02.2]} 31... Qf7 {[%clk 0:01:45.5]} 32. Rd1 {[%clk
0:01:59.5]} 32... d4 {[%clk 0:01:40.2]} 33. Qe4 {[%clk 0:01:53.5]} 33... Ra2
{[%clk 0:01:37.9]} 34. Rf1 {[%clk 0:01:53.4]} 34... Rb2 {[%clk 0:01:33.7]} 35.
Nd8 {[%clk 0:01:31.7]} 35... Qf5 {[%clk 0:01:29.4]} 36. Qd5 {[%clk 0:01:30.6]}
36... e4 {[%clk 0:01:21.2]} 37. Qd7 {[%clk 0:01:25.6]} 37... e3 {[%clk
0:01:09.4]} 38. fxe3 {[%clk 0:01:19.1]} 38... Qe4 {[%clk 0:00:59.8]} 39. Qg4
{[%clk 0:00:50.6]} 39... Qxg4 {[%clk 0:00:56.2]} 40. hxg4 {[%clk 0:00:50.3]}
40... dxe3 {[%clk 0:00:56.8]} 41. Ne6 {[%clk 0:00:49.2]} 41... Rxb5 {[%clk
0:00:49.7]} 42. Re1 {[%clk 0:00:35.1]} 42... Re5 {[%clk 0:00:42]} 43. Nxc7
{[%clk 0:00:22.2]} 43... e2 {[%clk 0:00:36.7]} 44. Kf2 {[%clk 0:00:18.8]} 44...
Rc5 {[%clk 0:00:34]} 45. Rxe2 {[%clk 0:00:18]} 45... Rxc6 {[%clk 0:00:34.2]} 46.
Ne6 {[%clk 0:00:17.5]} 46... Bf6 {[%clk 0:00:33.7]} 47. Kf3 {[%clk 0:00:16.3]}
47... Rc4 {[%clk 0:00:30.6]} 48. Nf4 {[%clk 0:00:15.4]} 48... Kg7 {[%clk
0:00:29.2]} 49. g3 {[%clk 0:00:12.6]} 49... Rc3+ {[%clk 0:00:27.4]} 50. Kg2
{[%clk 0:00:12.2]} 50... Ra3 {[%clk 0:00:25.6]} 51. Nd5 {[%clk 0:00:12.1]} 51...
Bg5 {[%clk 0:00:24.9]} 52. Nc7 {[%clk 0:00:10.9]} 52... Kf7 {[%clk 0:00:24.4]}
53. Ne6 {[%clk 0:00:10.7]} 53... Bf6 {[%clk 0:00:24.5]} 54. Nf4 {[%clk
0:00:10.4]} 54... Ra4 {[%clk 0:00:22.4]} 55. Nd5 {[%clk 0:00:10.2]} 55... Bg5
{[%clk 0:00:21.7]} 56. Rf2+ {[%clk 0:00:09.2]} 56... Ke6 {[%clk 0:00:21.4]} 57.
Nf4+ {[%clk 0:00:08]} 57... Kf6 {[%clk 0:00:20.8]} 58. Nd5+ {[%clk 0:00:07.7]}
58... Ke5 {[%clk 0:00:20.3]} 59. Nc3 {[%clk 0:00:05.1]} 59... Rxg4 {[%clk
0:00:19.1]} 60. Re2+ {[%clk 0:00:04]} 60... Kd4 {[%clk 0:00:16.1]} 61. Kf3
{[%clk 0:00:03.7]} 61... h5 {[%clk 0:00:11.1]} 62. Ne4 {[%clk 0:00:02.9]} 62...
Be7 {[%clk 0:00:08.9]} 63. Nf2 {[%clk 0:00:03]} 63... Rg5 {[%clk 0:00:05.6]} 64.
Rxe7 {[%clk 0:00:03.1]} 64... Rf5+ {[%clk 0:00:06.5]} 65. Kg2 {[%clk 0:00:02.7]}
65... Kd5 {[%clk 0:00:07.4]} 66. Rg7 {[%clk 0:00:02.6]} 66... g5 {[%clk
0:00:07.2]} 67. Nh3 {[%clk 0:00:03.1]} 67... h4 {[%clk 0:00:08.1]} 68. Nf4+
{[%clk 0:00:03.6]} 68... gxf4 {[%clk 0:00:08]} 69. Rg4 {[%clk 0:00:03.6]} 69...
hxg3 {[%clk 0:00:07.5]} 70. Kf3 {[%clk 0:00:03]} 70... Ke5 {[%clk 0:00:07.6]}
71. Kg2 {[%clk 0:00:02.3]} 71... Ke4 {[%clk 0:00:07.2]} 72. Kf1 {[%clk
0:00:02.4]} 72... Kf3 {[%clk 0:00:07.4]} 73. Rg5 {[%clk 0:00:01.3]} 73... Rxg5
{[%clk 0:00:07.1]} 0-1

[Event "*** Titled Tuesday Blitz"]
[Site "Chess.com"]
[Date "2020.10.20"]
[Round "9"]
[White "GigaQuparadze"]
[Black "LyonBeast"]
[Result "1/2-1/2"]
[WhiteElo "2894"]
[BlackElo "3041"]
[TimeControl "180+1"]
[EndTime "11:49:30 PDT"]
[Termination "Game drawn - insufficient material"]

1. e4 {[%clk 0:03:00.9]} 1... c6 {[%clk 0:02:56.9]} 2. d4 {[%clk 0:03:00.2]}
2... d5 {[%clk 0:02:56.8]} 3. Nc3 {[%clk 0:03:00.8]} 3... dxe4 {[%clk
0:02:55.7]} 4. Nxe4 {[%clk 0:03:01.7]} 4... Nf6 {[%clk 0:02:56.4]} 5. Nxf6+
{[%clk 0:03:00.7]} 5... exf6 {[%clk 0:02:56.6]} 6. c3 {[%clk 0:03:01.3]} 6...
Bd6 {[%clk 0:02:57]} 7. Bd3 {[%clk 0:03:01.4]} 7... O-O {[%clk 0:02:57.5]} 8.
Qc2 {[%clk 0:03:02]} 8... Re8+ {[%clk 0:02:57.9]} 9. Ne2 {[%clk 0:03:01.7]} 9...
h5 {[%clk 0:02:58.5]} 10. O-O {[%clk 0:03:02]} 10... Qc7 {[%clk 0:02:54]} 11. h3
{[%clk 0:03:01.3]} 11... Nd7 {[%clk 0:02:52]} 12. Ng3 {[%clk 0:03:01]} 12...
Bxg3 {[%clk 0:02:36]} 13. fxg3 {[%clk 0:03:01.9]} 13... Nf8 {[%clk 0:02:36.5]}
14. Bf4 {[%clk 0:02:57.6]} 14... Qa5 {[%clk 0:02:31.3]} 15. Qf2 {[%clk
0:02:44.6]} 15... Ng6 {[%clk 0:02:27.1]} 16. Bd2 {[%clk 0:02:42.2]} 16... Be6
{[%clk 0:02:15.9]} 17. c4 {[%clk 0:02:41.8]} 17... Qc7 {[%clk 0:02:15.8]} 18.
Bc3 {[%clk 0:02:39]} 18... Rad8 {[%clk 0:02:14.2]} 19. b3 {[%clk 0:02:37]} 19...
b5 {[%clk 0:01:58.8]} 20. Rac1 {[%clk 0:02:16.5]} 20... bxc4 {[%clk 0:01:58.1]}
21. bxc4 {[%clk 0:02:17]} 21... Qb6 {[%clk 0:01:51]} 22. Ba1 {[%clk 0:02:10.5]}
22... Qa6 {[%clk 0:01:43.2]} 23. Rfd1 {[%clk 0:02:06.1]} 23... Qa5 {[%clk
0:01:31.7]} 24. Be4 {[%clk 0:01:57.4]} 24... Qa4 {[%clk 0:01:29]} 25. Qc2 {[%clk
0:01:45.4]} 25... Qxc2 {[%clk 0:01:25]} 26. Bxc2 {[%clk 0:01:46.3]} 26... Ne7
{[%clk 0:01:22.7]} 27. Ba4 {[%clk 0:01:45.1]} 27... Rf8 {[%clk 0:01:17.8]} 28.
Bb2 {[%clk 0:01:44.6]} 28... Nf5 {[%clk 0:00:59.3]} 29. Bxc6 {[%clk 0:01:42.1]}
29... Ne3 {[%clk 0:00:59.7]} 30. Re1 {[%clk 0:01:17.4]} 30... Nxc4 {[%clk
0:00:56.9]} 31. Bc3 {[%clk 0:01:17.6]} 31... a5 {[%clk 0:00:47.2]} 32. a4 {[%clk
0:01:09.6]} 32... Bd5 {[%clk 0:00:41.3]} 33. Bb5 {[%clk 0:01:09.3]} 33... Rc8
{[%clk 0:00:39.6]} 34. Re2 {[%clk 0:01:07.5]} 34... Na3 {[%clk 0:00:32.7]} 35.
Rb2 {[%clk 0:01:05.4]} 35... Nc4 {[%clk 0:00:31.8]} 36. Rbb1 {[%clk 0:01:03]}
36... g6 {[%clk 0:00:22.2]} 37. Be1 {[%clk 0:01:02.1]} 37... Na3 {[%clk
0:00:20.7]} 38. Ra1 {[%clk 0:01:02.2]} 38... Nxb5 {[%clk 0:00:19.3]} 39. Rxc8
{[%clk 0:01:00.2]} 39... Rxc8 {[%clk 0:00:18]} 40. axb5 {[%clk 0:01:00.7]} 40...
Rc2 {[%clk 0:00:18.9]} 41. Bf2 {[%clk 0:00:56.3]} 41... Rb2 {[%clk 0:00:18.3]}
42. Rxa5 {[%clk 0:00:55.7]} 42... Kg7 {[%clk 0:00:18.5]} 43. b6 {[%clk
0:00:54.7]} 43... Be4 {[%clk 0:00:18.2]} 44. d5 {[%clk 0:00:52.8]} 44... Rb1+
{[%clk 0:00:18.6]} 45. Kh2 {[%clk 0:00:52.8]} 45... Rb2 {[%clk 0:00:19.3]} 46.
Ra4 {[%clk 0:00:40]} 46... Bxd5 {[%clk 0:00:18.7]} 47. Rf4 {[%clk 0:00:40.1]}
47... Re2 {[%clk 0:00:14.4]} 48. Kg1 {[%clk 0:00:36.1]} 48... g5 {[%clk
0:00:13.4]} 49. Rd4 {[%clk 0:00:34.8]} 49... Bc6 {[%clk 0:00:12.1]} 50. Rc4
{[%clk 0:00:33.7]} 50... Re6 {[%clk 0:00:09.9]} 51. Rc2 {[%clk 0:00:29.4]} 51...
Kg6 {[%clk 0:00:09.7]} 52. Ra2 {[%clk 0:00:29.6]} 52... Bb7 {[%clk 0:00:07.3]}
53. Ra7 {[%clk 0:00:29.4]} 53... Re7 {[%clk 0:00:07.7]} 54. Ra4 {[%clk
0:00:28.6]} 54... Rd7 {[%clk 0:00:07.8]} 55. Ra2 {[%clk 0:00:28.5]} 55... Rd1+
{[%clk 0:00:07.7]} 56. Kh2 {[%clk 0:00:28.1]} 56... Rb1 {[%clk 0:00:08.6]} 57.
Rc2 {[%clk 0:00:27.8]} 57... Be4 {[%clk 0:00:08.6]} 58. Rd2 {[%clk 0:00:27.6]}
58... Rb3 {[%clk 0:00:07.7]} 59. Bd4 {[%clk 0:00:27.5]} 59... f5 {[%clk
0:00:07.3]} 60. Ra2 {[%clk 0:00:26.2]} 60... h4 {[%clk 0:00:07.2]} 61. gxh4
{[%clk 0:00:25.5]} 61... gxh4 {[%clk 0:00:08.1]} 62. Ra6 {[%clk 0:00:24.3]}
62... Kh5 {[%clk 0:00:08]} 63. b7 {[%clk 0:00:20.6]} 63... Bxb7 {[%clk 0:00:07]}
64. Rf6 {[%clk 0:00:20.7]} 64... Kg5 {[%clk 0:00:06.5]} 65. Rxf7 {[%clk
0:00:20.6]} 65... Be4 {[%clk 0:00:07.2]} 66. Be5 {[%clk 0:00:19.7]} 66... Rb5
{[%clk 0:00:06.2]} 67. Rg7+ {[%clk 0:00:19.5]} 67... Kh6 {[%clk 0:00:06.5]} 68.
Bf6 {[%clk 0:00:19.7]} 68... Rb6 {[%clk 0:00:06.4]} 69. Bd4 {[%clk 0:00:19.6]}
69... Rd6 {[%clk 0:00:06.5]} 70. Be5 {[%clk 0:00:19.7]} 70... Re6 {[%clk
0:00:06.3]} 71. Bd4 {[%clk 0:00:19.4]} 71... f4 {[%clk 0:00:06.5]} 72. Rg4
{[%clk 0:00:18.9]} 72... Rg6 {[%clk 0:00:06.5]} 73. Rxh4+ {[%clk 0:00:18.3]}
73... Kg5 {[%clk 0:00:07.1]} 74. Rg4+ {[%clk 0:00:18.4]} 74... Kh5 {[%clk
0:00:06.6]} 75. Rxg6 {[%clk 0:00:16.9]} 75... Kxg6 {[%clk 0:00:07.5]} 76. Be5
{[%clk 0:00:17.1]} 76... f3 {[%clk 0:00:07.3]} 77. gxf3 {[%clk 0:00:16.8]} 77...
Bxf3 {[%clk 0:00:08.2]} 78. Kg3 {[%clk 0:00:17.1]} 78... Bd5 {[%clk 0:00:08.8]}
79. Bf4 {[%clk 0:00:17.8]} 79... Be6 {[%clk 0:00:08.7]} 80. h4 {[%clk
0:00:17.8]} 80... Kh5 {[%clk 0:00:09.3]} 81. Kf2 {[%clk 0:00:17.6]} 81... Bc8
{[%clk 0:00:10.2]} 82. Bd6 {[%clk 0:00:17.3]} 82... Bd7 {[%clk 0:00:11.1]} 83.
Bc7 {[%clk 0:00:16.2]} 83... Kxh4 {[%clk 0:00:11.6]} 1/2-1/2